[Event "Sardinia World Festival-A 2024"]
[Site "Orosei"]
[Date "2024.05.01"]
[Round "6.12"]
[White "Lodici, Lorenzo"]
[Black "Degraeve, Remy"]
[Result "1-0"]
[ECO "A14"]
[WhiteElo "2565"]
[BlackElo "2432"]
[Annotator "RC"]
[PlyCount "145"]
[EventDate "2024.04.26"]
[EventType "swiss"]
[EventCountry "ITA"]
[SourceTitle "playchess.com"]
[Source "ChessBase"]
[SourceQuality "1"]
[TimeControl "40/5400+30:1800+30"]

1. Nf3 {[%emt 0:00:45]} d5 {[%emt 0:02:01]} 2. g3 {[%emt 0:00:08]} Nf6 {[%emt 0:00:04]} 3. Bg2 {[%emt 0:00:04]} e6 {[%emt 0:00:04]} 4. O-O {[%emt 0:01:10]} Be7 {[%emt 0:00:04]} 5. c4 {[%emt 0:00:03]} O-O {[%emt 0:00:06]} 6. b3 {[%emt 0:00:06]} d4 {[%emt 0:00:39]} 7. e3 {[%emt 0:00:05]} c5 {[%emt 0:00:08]} 8. exd4 {[%emt 0:14:06]} cxd4 {[%emt 0:00:08]} 9. Bb2 {[%emt 0:00:02]} Nc6 {[%emt 0:00:09]} 10. Re1 {[%emt 0:00:04]} Bc5 {[%emt 0:00:21]} 11. d3 {[%emt 0:00:05]} a5 {[%emt 0:06:46]} 12. Na3 {[%emt 0:09:37]} Re8 {[%emt 0:04:19]} 13. Ne5 {[%emt 0:08:32]} Nxe5 {[%emt 0:02:48]} 14. Rxe5 {[%emt 0:00:02]} Qd6 {[%emt 0:21:02]} 15. Rxc5 {[%emt 0:00:11]} Qxc5 {[%emt 0:00:04]} 16. Nb5 {[%emt 0:00:06]} Rd8 {[%emt 0:07:21]} 17. Ba3 {[%emt 0:02:33]} Qe5 {[%emt 0:10:26]} 18. Qd2 {[%emt 0:15:09]} Ne8 {[%emt 0:08:46]} 19. Re1 {[%emt 0:12:46]} Qf6 {[%emt 0:00:25]} 20. Bc5 {[%emt 0:00:25]} Bd7 {[%emt 0:19:02]} 21. Bxd4 {[%emt 0:08:51]} Qe7 {[%emt 0:00:04]} 22. Bb6 {[%emt 0:00:33]} Rdb8 {[%emt 0:00:14]} 23. Nc7 {[%emt 0:10:56]} Nxc7 {[%emt 0:00:06]} 24. Bxc7 {[%emt 0:00:02]} Re8 {[%emt 0:00:51]} 25. Bxa5 {[%emt 0:00:05]} Bc6 {[%emt 0:04:52]} 26. Bxc6 {[%emt 0:00:19]} bxc6 {[%emt 0:00:04]} 27. b4 {[%emt 0:01:11]} e5 {[%emt 0:02:55]} 28. a4 {[%emt 0:05:59]} Qa7 {[%emt 0:01:48]} 29. c5 {[%emt 0:03:08]} Qd7 {[%emt 0:02:58]} 30. Qc3 {[%emt 0:01:27]} f6 {[%emt 0:01:09]} 31. Rb1 {[%emt 0:03:13]} Kh8 {[%emt 0:01:32]} 32. Qc4 {[%emt 0:00:58]} f5 {[%emt 0:00:16]} 33. Re1 {[%emt 0:00:48]} h6 {[%emt 0:00:50]} 34. Qc3 {[%emt 0:00:30]} f4 {[%emt 0:03:04]} 35. Kg2 {[%emt 0:01:39]} Qd5+ {[%emt 0:00:42]} 36. Re4 {[%emt 0:00:33]} Ra7 {[%emt 0:00:34]} 37. Qc4 {[%emt 0:00:34]} Qd7 {[%emt 0:00:11]} 38. f3 {[%emt 0:00:24]} fxg3 {[%emt 0:00:14]} 39. hxg3 {[%emt 0:00:02]} Qf5 {[%emt 0:00:41]} 40. Re3 {[%emt 0:01:57]} Qg5 {[%emt 0:02:00]} 41. Qe4 {[%emt 0:04:03]} Re6 {[%emt 0:02:24]} 42. Re2 {[%emt 0:03:38]} Rf7 {[%emt 0:08:16]} 43. Qg4 {[%emt 0:02:05]} Qe7 {[%emt 0:00:03]} 44. b5 {[%emt 0:07:38]} Ref6 {[%emt 0:04:47]} 45. bxc6 {[%emt 0:00:57]} Qxc5 {[%emt 0:09:43]} 46. c7 {[%emt 0:00:52]} Rxc7 {[%emt 0:04:05]} 47. Bxc7 {[%emt 0:00:13]} Qxc7 {[%emt 0:00:02]} 48. Qb4 {[%emt 0:04:09]} Qc6 {[%emt 0:00:57]} 49. Qe4 {[%emt 0:00:02]} Qa6 {[%emt 0:00:16]} 50. Rc2 {[%emt 0:05:54]} Rd6 {[%emt 0:01:56]} 51. Rc4 {[%emt 0:00:32]} Rd8 {[%emt 0:00:30]} 52. Qe2 {[%emt 0:04:31]} Qa5 {[%emt 0:01:49]} 53. Qc2 {[%emt 0:01:18]} Qa8 {[%emt 0:00:12]} 54. Qc3 {[%emt 0:02:30]} Rf8 {[%emt 0:00:30]} 55. Re4 {[%emt 0:00:00]} Qd5 {[%emt 0:00:06]} 56. Qc4 {[%emt 0:00:00]} Qa5 {[%emt 0:01:20]} 57. Qb4 {[%emt 0:00:00]} Qa8 {[%emt 0:00:07]} 58. a5 {[%emt 0:00:01]} Rb8 {[%emt 0:00:03]} 59. Qc3 {[%emt 0:00:38]} Rc8 {[%emt 0:02:11]} 60. Qxe5 {[%emt 0:00:02]} Rc2+ {[%emt 0:00:06]} 61. Kh3 {[%emt 0:00:06]} Qa6 {[%emt 0:00:24]} 62. Rg4 {[%emt 0:01:00]} Qa7 {[%emt 0:00:27]} 63. Rd4 {[%emt 0:01:50]} Qa8 {[%emt 0:00:34]} 64. Rd7 {[%emt 0:00:19]} Qf8 {[%emt 0:00:53]} 65. a6 {[%emt 0:00:36]} Rc5 {[%emt 0:00:18]} 66. Qd4 {[%emt 0:00:01]} Qf5+ {[%emt 0:01:01]} 67. Qg4 {[%emt 0:00:01]} Qf6 {[%emt 0:00:06]} 68. a7 {[%emt 0:00:22]} Ra5 {[%emt 0:00:03]} 69. d4 {[%emt 0:00:59]} h5 {[%emt 0:00:37]} 70. Qe4 {[%emt 0:00:24]} Qf8 {[%emt 0:00:20]} 71. Qg6 {[%emt 0:00:44]} h4 {[%emt 0:00:54]} 72. Rf7 {[%emt 0:00:54]} Qc8+ {[%emt 0:00:39]} 73. Qg4 {[%emt 0:00:16]} 1-0

[Event "Sardinia World Festival-A 2024"]
[Site "Orosei"]
[Date "2024.05.01"]
[Round "6.13"]
[White "Vantika Agrawal"]
[Black "Sonis, Francesco"]
[Result "1/2-1/2"]
[ECO "D30"]
[WhiteElo "2398"]
[BlackElo "2562"]
[Annotator "TA"]
[PlyCount "108"]
[EventDate "2024.04.26"]
[EventType "swiss"]
[EventCountry "ITA"]
[SourceTitle "playchess.com"]
[Source "ChessBase"]
[SourceQuality "1"]
[TimeControl "40/5400+30:1800+30"]

{[%evp 9,108,31,35,22,31,27,35,27,28,29,39,37,37,27,33,38,32,8,35,31,31,37,37,35,33,35,54,44,46,43,55,56,94,93,87,50,77,96,97,94,103,91,83,91,89,83,93,84,137,139,126,61,62,61,66,49,52,38,60,57,64,64,72,7,63,43,42,17,49,0,11,0,0,0,14,0,26,16,30,30,33,0,0,0,0,0,22,34,45,31,19,16,25,0,67,0,33,36,211,221,206]} 1. d4 {[%emt 0:00:49]} d5 {[%emt 0:00:21]} 2. c4 {[%emt 0:00:20]} e6 {[%emt 0:00:06]} 3. Nf3 {[%emt 0:00:15]} a6 {[%emt 0:00:05]} 4. Bg5 {[%emt 0:05:58]} Nf6 {[%emt 0:00:36]} 5. cxd5 {[%emt 0:04:51]} exd5 {[%emt 0:00:07]} 6. Nc3 {[%emt 0:01:02]} Be6 {[%emt 0:00:21]} 7. e3 {[%emt 0:02:52]} Nbd7 {[%emt 0:00:36]} 8. h3 {[%emt 0:01:13] White is slightly better.} Bd6 {[%emt 0:00:58]} 9. Bd3 {[%emt 0:02:21]} c6 {[%emt 0:00:30]} 10. Bf4 {[%emt 0:00:36]} Qb8 {[%emt 0:00:18]} 11. Bxd6 {[%emt 0:01:03]} Qxd6 {[%emt 0:00:06]} 12. O-O {[%emt 0:00:38]} O-O {[%emt 0:00:23]} 13. a4 {[%emt 0:03:32]} c5 {[%emt 0:19:11]} 14. dxc5 {[%emt 0:13:04]} Nxc5 {[%emt 0:00:20]} 15. Bc2 {[%emt 0:02:37]} Rfd8 {[%emt 0:00:46]} 16. Qd4 {[%emt 0:13:10]} Rac8 {[%emt 0:01:35]} 17. Rfd1 {[%emt 0:03:23]} Qe7 {[%emt 0:07:49][%cal Oc5e4]} 18. Qh4 {[%emt 0:04:27][%cal Oc2h7] Bxh7+! would now be deadly.} h6 {[%emt 0:02:16]} 19. Nd4 {[%emt 0:05:33]} Rd6 {[%emt 0:12:50]} 20. Rac1 {[%emt 0:11:10]} Rcd8 {[%emt 0:06:23]} 21. b4 {[%emt 0:09:38][%cal Bb2b4,Bb4b5][%mdl 32]} Ncd7 {[%emt 0:00:06][%cal Bc5d7,Bd7e5,Be5g6][%mdl 32]} 22. b5 {[%emt 0:01:27]} a5 {[%emt 0:09:28]} 23. Nce2 {[%emt 0:01:05]} Ne5 {[%emt 0:09:16]} 24. Ng3 {[%emt 0:01:25] [#] Strongly threatening Ndf5.} R6d7 {[%emt 0:03:42]} 25. Ngf5 {[%emt 0:01:18]} Bxf5 {[%emt 0:00:05]} 26. Nxf5 {[%emt 0:00:23]} ({Of course not} 26. Bxf5 Rc7 $11) 26... Qe6 {[%emt 0:00:06]} 27. Qg3 {[%emt 0:01:49][%csl Gf5][%cal Rg3g7]} Ng6 {[%emt 0:04:00]} 28. Nd4 {[%emt 0:00:34][%csl LRe6,LRg6]} Qe8 {[%emt 0:00:04]} (28... Qe5 $142) 29. Bf5 {[%emt 0:01:21]} Re7 {[%emt 0:00:03]} 30. Bxg6 {[%emt 0:03:42]} (30. Bd3 $16) 30... fxg6 $14 {[%emt 0:00:24]} 31. Rc7 {[%emt 0:00:25] Hoping for Rxe7.} Rdd7 {[%emt 0:00:56]} 32. Rxd7 {[%emt 0:00:41]} Rxd7 {[%emt 0:00:04]} 33. Rc1 {[%emt 0:00:41]} Ne4 {[%emt 0:00:18]} 34. Qg4 {[%emt 0:00:46]} Kh7 {[%emt 0:00:40][%cal Oe8f8]} 35. Qe6 {[%emt 0:01:37]} Qd8 {[%emt 0:04:37]} 36. Nf3 {[%emt 0:01:52]} (36. Ne2 $16) 36... Nf6 {[%emt 0:00:33]} ({Black should try} 36... Re7 $1 $11 37. Rc8 Rxe6 38. Rxd8 Nc3) 37. Qe5 {[%emt 0:00:34] White has more active pieces.} Ne4 {[%emt 0:01:40]} 38. h4 {[%emt 0:00:43]} Rd6 {[%emt 0:04:26]} 39. Qd4 {[%emt 0:00:32]} (39. Rc2 $14) 39... Re6 {[%emt 0:03:30]} 40. Qa7 {[%emt 0:00:30]} Re7 {[%emt 0:00:49] [#] And now ...b6 would win.} 41. Qd4 {[%emt 0:16:43]} Rf7 {[%emt 0:06:50]} 42. Qe5 {[%emt 0:04:09]} Re7 {[%emt 0:09:15]} 43. Qf4 {[%emt 0:00:53]} Nd6 {[%emt 0:03:07][%cal Be4d6,Bd6c4,Bc4b6][%mdl 32]} 44. Ne5 {[%emt 0:06:30]} Qe8 {[%emt 0:04:14]} 45. Nc6 {[%emt 0:01:02]} Re6 {[%emt 0:03:43]} 46. Nd4 {[%emt 0:00:45]} Rf6 {[%emt 0:00:18]} 47. Qg4 {[%emt 0:00:30]} Nc4 {[%emt 0:00:36][%cal Of6f2]} 48. Nf3 {[%emt 0:01:23]} Qe7 {[%emt 0:06:03]} 49. Rd1 {[%emt 0:01:06]} Nb6 {[%emt 0:00:20]} 50. Qd4 {[%emt 0:00:53]} Qe4 {[%emt 0:00:17]} 51. Rc1 {[%emt 0:01:34]} Qe7 {[%emt 0:02:21] Inhibits Rc7.} (51... Nxa4 $11 52. Qa7 Nc3 (52... Qg4 $2 53. Qxb7 g5 54. Qxd5 $18) 53. Rxc3 Qb1+ 54. Kh2 Rxf3 55. gxf3 Qb2) 52. Rd1 {[%emt 0:00:30]} ({Better is} 52. Nd2 $14) 52... Re6 {[%emt 0:00:29]} 53. Qc3 {[%emt 0:00:24]} Qb4 {[%emt 0:01:55]} (53... Nxa4 $14 54. Qxa5 Nb6) 54. Qxb4 $18 {[%emt 0:00:31]} axb4 {[%emt 0:00:05] Weighted Error Value: White=0.12 (very precise) /Black=0.18 (very precise) .  Loses game:     	---       	Black=1      Mistake:       	White=4     	Black=3      Inaccurate:     	White=2     	Black=6      OK:         	White=20    	Black=16     Best:        	White=1     	Black=1} 1/2-1/2

[Event "Sardinia World Festival-A 2024"]
[Site "Orosei"]
[Date "2024.05.01"]
[Round "6.14"]
[White "Tudor, Henry Edward"]
[Black "Mikhalevski, Victor"]
[Result "1-0"]
[ECO "A04"]
[WhiteElo "2279"]
[BlackElo "2506"]
[Annotator "TA"]
[PlyCount "107"]
[EventDate "2024.04.26"]
[EventType "swiss"]
[EventCountry "ITA"]
[SourceTitle "playchess.com"]
[Source "ChessBase"]
[SourceQuality "1"]
[TimeControl "40/5400+30:1800+30"]

{[%evp 9,107,-11,24,14,34,23,32,31,45,47,37,33,51,30,46,41,48,45,65,32,63,50,90,44,38,22,75,84,72,69,70,63,84,-47,88,93,119,125,129,87,106,40,41,37,37,37,276,288,232,320,376,377,399,330,354,402,400,369,387,364,446,439,437,429,407,436,582,515,618,566,603,592,629,605,638,620,723,742,802,796,935,966,943,933,1918,1770,5381,1020,955,949,858,769,1704,1332,29974,29975,29994,29995,29995,29996]} 1. Nf3 {[%emt 0:00:02]} c5 {[%emt 0:01:39]} 2. b3 {[%emt 0:00:55]} d6 {[%emt 0:01:04]} 3. d4 {[%emt 0:06:44]} cxd4 {[%emt 0:04:14]} 4. Nxd4 {[%emt 0:01:13]} Nf6 {[%emt 0:00:13]} 5. Bb2 {[%emt 0:13:02]} g6 {[%emt 0:02:18]} 6. g3 {[%emt 0:01:00]} h5 {[%emt 0:06:55]} 7. h3 {[%emt 0:17:29]} Bd7 {[%emt 0:05:11]} 8. Bg2 {[%emt 0:09:49] White is slightly better.} Qc8 {[%emt 0:00:06]} 9. c4 {[%emt 0:01:09]} Bg7 {[%emt 0:02:46]} 10. Nc3 {[%emt 0:03:35]} O-O {[%emt 0:12:24]} 11. Rc1 {[%emt 0:04:01]} Na6 {[%emt 0:13:32][%cal Bb8a6,Ba6c5,Bc5e4][%mdl 32]} 12. Qd2 {[%emt 0:13:24]} Re8 {[%emt 0:07:23]} 13. Nd5 {[%emt 0:02:28]} Nc5 {[%emt 0:01:39]} 14. Nxf6+ {[%emt 0:06:48]} Bxf6 {[%emt 0:04:42] [#]} 15. g4 $1 {[%emt 0:00:32]} h4 {[%emt 0:14:00]} (15... hxg4 16. hxg4) 16. Nf3 {[%emt 0:05:41]} (16. O-O $16) 16... Ne4 $14 {[%emt 0:05:07]} 17. Qc2 {[%emt 0:00:38]} Qc5 {[%emt 0:01:36]} (17... Qd8 $11 {remains equal.}) 18. O-O $16 {[%emt 0:00:26]} Bc6 {[%emt 0:06:41]} 19. Bxf6 {[%emt 0:06:06]} exf6 {[%emt 0:00:07]} 20. Nxh4 {[%emt 0:00:04]} Kg7 {[%emt 0:07:17]} 21. e3 {[%emt 0:00:56]} (21. Nf3 $16) 21... Rh8 {[%emt 0:00:17] [#]} (21... Ng5 $1 $15 {stays ahead.} 22. b4 Qxb4) 22. Nf3 $1 {[%emt 0:00:03]} Ng5 {[%emt 0:02:19]} 23. Nxg5 {[%emt 0:01:13]} Qxg5 {[%emt 0:00:00]} 24. Qd2 {[%emt 0:01:20]} Rh4 {[%emt 0:00:02]} 25. Qxd6 {[%emt 0:03:35]} (25. f3 $16) 25... Rah8 $14 {[%emt 0:00:25]} 26. Qf4 {[%emt 0:00:43] And now Qxg5 would win.} Rxh3 $1 {[%emt 0:00:26][%cal Oh3h1] ( -> ...Rh1+!)} 27. f3 $1 $36 {[%emt 0:00:31][%mdl 2048] Hoping for Qxg5. White has some pressure.} Qa5 {[%emt 0:00:58] This move loses the game for Black.} 28. Bxh3 $18 {[%emt 0:00:25]} Rxh3 {[%emt 0:00:02]} 29. Kg2 {[%emt 0:00:25]} g5 {[%emt 0:01:37]} 30. Qd4 {[%emt 0:00:22]} Rh4 {[%emt 0:00:00]} 31. Rf2 {[%emt 0:00:38]} Qc7 {[%emt 0:00:00]} 32. Rh1 {[%emt 0:00:08] Dodges Qh2+} (32. Qxa7 Rh2+ (32... Rxg4+ $2 33. Kf1 $19) 33. Kf1 Rxf2+ (33... Rh1+ $2 34. Ke2 $19) 34. Kxf2 Qh2+ 35. Kf1 Bxf3 (35... Qh1+ $2 36. Ke2 $19) (35... Qh1+ $2 36. Ke2 $19)) 32... Rxh1 {[%emt 0:00:00]} 33. Kxh1 {[%emt 0:00:01][%mdl 4096] Endgame. KQR-KQB} Qg3 {[%emt 0:00:00]} 34. e4 {[%emt 0:00:25]} Kg8 {[%emt 0:00:00]} 35. Qd8+ {[%emt 0:00:39]} (35. Qxa7 Bxe4 36. Qe3 (36. fxe4 Qh4+ 37. Kg1 Qxg4+ 38. Kh1 Qh3+ 39. Kg1 Qg4+ 40. Kh2 Qh4+ 41. Kg1 Qg4+ $11) 36... b6 $14) 35... Kg7 {[%emt 0:00:00]} 36. Qd2 {[%emt 0:00:50]} a5 {[%emt 0:00:00]} 37. Rf1 {[%emt 0:00:45]} Qe5 {[%emt 0:00:31]} 38. Kg2 {[%emt 0:00:40]} Qc5 {[%emt 0:00:57]} 39. Rh1 {[%emt 0:00:31] aiming for Qd8.} Qe5 {[%emt 0:00:11]} 40. Re1 {[%emt 0:00:41]} Kg8 {[%emt 0:00:21]} 41. Rd1 {[%emt 0:04:49]} Kg7 {[%emt 0:02:04]} 42. Qd4 {[%emt 0:01:22]} Qf4 {[%emt 0:00:33]} 43. a4 {[%emt 0:01:38]} b6 {[%emt 0:05:25]} 44. Rh1 {[%emt 0:05:45]} ({Worse is} 44. Qxb6 Bxe4 45. Qf2 (45. fxe4 Qxg4+ 46. Kf2 Qxd1 $11) 45... Qxg4+ 46. Kf1 Bxf3 $11) 44... Qb8 {[%emt 0:01:18]} 45. Rh5 {[%emt 0:02:27]} Kg6 {[%emt 0:00:55]} 46. Kf2 {[%emt 0:00:06]} Qc7 {[%emt 0:06:51]} 47. Rh8 {[%emt 0:02:41]} Bd7 {[%emt 0:00:10]} 48. Kg2 {[%emt 0:03:50]} (48. Qd1 $142 f5 49. gxf5+ (49. exf5+ Bxf5 50. gxf5+ Kxf5 $18) 49... Kg7 50. Qa1+ f6 51. Qh1 Qc5+ 52. Kg2 Bxf5 53. exf5) 48... Kg7 {[%emt 0:01:34]} 49. Rh5 {[%emt 0:00:05]} Kg6 {[%emt 0:00:50] [#]} 50. e5 $1 {[%emt 0:00:23]} fxe5 {[%emt 0:03:55]} (50... Qxe5 51. Qxe5) 51. Qe4+ {[%emt 0:00:40]} f5 {[%emt 0:05:12]} 52. Qd5 {[%emt 0:01:02] White mates.} Qc8 {[%emt 0:01:11]} 53. Qd6+ {[%emt 0:00:39]} Be6 {[%emt 0:01:04]} 54. Qe7 {[%emt 0:00:05] Weighted Error Value: White=0.15 (very precise) /Black=0.38.  Loses game:     	---       	Black=1      Mistake:       	White=3     	Black=2      Inaccurate:     	White=1     	Black=3      OK:         	White=18    	Black=8      Best:        	White=3     	Black=2      Strong:       	White=2     	Black=1} 1-0

[Event "Sardinia World Festival-A 2024"]
[Site "Orosei"]
[Date "2024.05.01"]
[Round "6.15"]
[White "Rozen, Eytan"]
[Black "Kanov, Nikola"]
[Result "0-1"]
[ECO "B44"]
[WhiteElo "2499"]
[BlackElo "2423"]
[Annotator "TA"]
[PlyCount "154"]
[EventDate "2024.04.26"]
[EventType "swiss"]
[EventCountry "ITA"]
[SourceTitle "playchess.com"]
[Source "ChessBase"]
[SourceQuality "1"]
[TimeControl "40/5400+30:1800+30"]

{[%evp 55,154,0,0,0,0,0,0,0,14,0,0,-189,-188,-189,-189,-189,-187,-194,-191,-201,-201,-201,-192,-191,0,-193,-146,-151,-150,-202,-198,-216,-216,-216,-208,-208,-164,-255,-243,-218,-86,-252,-177,-253,-258,-187,-187,-190,-191,-260,-253,-460,-409,-585,-507,-710,-532,-558,-237,-775,-578,-466,0,-767,-754,-721,-668,-625,-616,-616,-568,-909,-924,-891,-869,-823,-803,-767,-584,-629,-610,-2426,-1347,-5173,-5097,-5047,-1904,-1758,-1008,-1672,-1504,-863,-846,-29982,-29983,-29983,-29984,-29984,-29985,-29985,-29985]} 1. Nf3 {[%emt 0:00:34]} c5 {[%emt 0:01:02]} 2. e4 {[%emt 0:00:38]} e6 {[%emt 0:00:17]} 3. d4 {[%emt 0:00:49]} cxd4 {[%emt 0:00:31]} 4. Nxd4 {[%emt 0:00:15]} Nc6 {[%emt 0:00:15]} 5. Bf4 {[%emt 0:01:15]} d6 {[%emt 0:01:49]} 6. Nxc6 {[%emt 0:00:12] B44: Sicilian: Taimanov: 5 Nb5.} bxc6 {[%emt 0:00:09]} 7. Bd3 {[%emt 0:00:12]} e5 {[%emt 0:03:34]} 8. Be3 {[%emt 0:00:05]} Nf6 {[%emt 0:01:14]} 9. c4 {[%emt 0:00:19]} Be7 {[%emt 0:04:08]} 10. Nc3 {[%emt 0:00:12]} O-O {[%emt 0:01:36]} 11. O-O {[%emt 0:00:23]} h6 {[%emt 0:11:55]} 12. Rc1 $146 {[%emt 0:02:18]} ({Predecessor:} 12. h3 Be6 13. Qe2 Qc7 14. Rfc1 Qb7 15. Rab1 a5 16. b3 Nd7 17. c5 Nxc5 18. Bxc5 dxc5 19. Na4 {½-½ Sekar,B (2263)-Avinash,R (2238) Tamil Nadu IM 19th 2024 (6)}) 12... Bb7 {[%emt 0:03:35]} 13. Qb3 {[%emt 0:04:16]} Qd7 {[%emt 0:04:48]} 14. Be2 {[%emt 0:04:59]} Rfb8 {[%emt 0:04:40]} 15. Rfd1 {[%emt 0:06:29]} Qe6 {[%emt 0:03:28]} 16. Qa4 {[%emt 0:01:33]} Rd8 {[%emt 0:03:14]} 17. Bf3 {[%emt 0:02:44]} Rd7 {[%emt 0:08:46]} 18. Rd2 {[%emt 0:10:22]} Ng4 {[%emt 0:05:25]} 19. Bxg4 {[%emt 0:01:54]} Qxg4 {[%emt 0:00:06]} 20. f3 {[%emt 0:02:08]} Qe6 {[%emt 0:02:22]} 21. Rcd1 {[%emt 0:05:02]} Rdd8 {[%emt 0:07:43]} 22. Qa5 {[%emt 0:10:14]} Kh7 {[%emt 0:08:17]} 23. h3 {[%emt 0:02:17]} Rd7 {[%emt 0:09:23]} 24. b3 {[%emt 0:03:55]} Rad8 {[%emt 0:02:10]} 25. Na4 {[%emt 0:06:30]} d5 {[%emt 0:06:05]} 26. cxd5 {[%emt 0:02:00]} cxd5 {[%emt 0:00:06]} 27. exd5 {[%emt 0:00:14]} Bxd5 {[%emt 0:02:06]} 28. Nc3 {[%emt 0:12:13]} Bc6 {[%emt 0:02:09]} 29. Rxd7 {[%emt 0:00:05]} Rxd7 {[%emt 0:00:05]} 30. Rxd7 {[%emt 0:01:12]} Qxd7 {[%emt 0:00:12]} 31. Bxa7 {[%emt 0:00:47]} Qd3 {[%emt 0:03:07]} 32. Bf2 {[%emt 0:02:43]} (32. Qxe5 $2 {loses.} Bf6 33. Qc5 Qxc3 34. Qxc3 Bxc3 $19) 32... Bd6 {[%emt 0:00:19]} 33. Bc5 $2 {[%emt 0:02:27] [#]} (33. a4 $11) 33... e4 $1 $19 {[%emt 0:01:49]} ({Not} 33... Bb8 34. Bb6 $11) 34. Nxe4 {[%emt 0:06:06]} Bxe4 {[%emt 0:00:29]} 35. Bxd6 {[%emt 0:00:26]} Qd4+ {[%emt 0:00:32]} 36. Kh1 {[%emt 0:00:40]} Qd1+ {[%emt 0:00:05]} 37. Kh2 {[%emt 0:00:04]} Qxd6+ {[%emt 0:00:03]} 38. Kh1 {[%emt 0:00:05]} Qd1+ {[%emt 0:00:40]} 39. Kh2 {[%emt 0:00:02]} Qd6+ {[%emt 0:00:41]} 40. Kh1 $1 {[%emt 0:00:02]} Bb1 {[%emt 0:00:19]} (40... Bc6 $19 41. b4 Qd7) 41. b4 $17 {[%emt 0:32:29]} Qd2 {[%emt 0:03:41]} 42. a3 {[%emt 0:00:00]} (42. a4 $17 {is a better defense.}) 42... Bd3 $19 {[%emt 0:02:34]} 43. Qc5 {[%emt 0:00:00]} Qa2 {[%emt 0:02:23]} 44. Qc1 {[%emt 0:00:00]} f6 {[%emt 0:11:31]} 45. Kh2 {[%emt 0:00:00]} h5 {[%emt 0:01:18]} 46. h4 {[%emt 0:00:00]} (46. Qc5 $142) 46... Kg6 {[%emt 0:02:21]} 47. Kg3 {[%emt 0:00:00] [#]} Qb3 {[%emt 0:00:55]} (47... Bb5 $1 $19 {and Black stays clearly on top. White must now prevent ...Qe2.} 48. Qe1 Qd5 (48... Qxa3 49. Qe4+ Kh6 50. Qf4+ Kg6 51. Qe4+ Kh6 52. Qf4+ Kg6 53. Qe4+ $11)) 48. Kf4 $2 {[%emt 0:00:00]} (48. Qe3 $17) 48... Qe6 $19 {[%emt 0:01:30]} 49. Qc3 {[%emt 0:00:00]} (49. Kg3 $142) 49... Qd6+ $19 {[%emt 0:02:29]} 50. Ke3 {[%emt 0:00:00]} Bf5 {[%emt 0:00:06]} 51. Kf2 {[%emt 0:00:00]} Qf4 {[%emt 0:02:32]} 52. g3 {[%emt 0:00:00]} (52. b5 $142) 52... Qd6 $19 {[%emt 0:00:12]} 53. a4 $2 {[%emt 0:00:00]} (53. Qc4 {was worth a try.}) 53... Qd1 $19 {[%emt 0:00:52]} 54. a5 {[%emt 0:00:00]} (54. Qb2 {keeps fighting.}) 54... Bd3 $19 {[%emt 0:00:38]} 55. Ke3 {[%emt 0:00:00]} Bb5 {[%emt 0:00:57]} 56. Ke4 {[%emt 0:00:00]} Qd6 {[%emt 0:00:58]} (56... Ba6 $142 57. f4 Kh7) 57. f4 $2 {[%emt 0:00:00]} (57. g4) 57... Qe6+ {[%emt 0:00:24]} 58. Kd4 {[%emt 0:00:00]} Qd6+ {[%emt 0:00:12]} (58... Kh6 $142 59. Qc7 Bf1) 59. Ke4 $1 $19 {[%emt 0:00:00]} Bc6+ {[%emt 0:00:54]} 60. Ke3 {[%emt 0:00:00]} Qe6+ {[%emt 0:01:24]} 61. Kd4 {[%emt 0:00:00]} Qd5+ {[%emt 0:00:25]} 62. Ke3 {[%emt 0:00:00]} Bb5 {[%emt 0:00:46]} 63. Qc2+ {[%emt 0:00:00]} Kh6 {[%emt 0:00:06]} 64. Qc3 {[%emt 0:00:00]} Qd1 {[%emt 0:01:07]} 65. Ke4 {[%emt 0:00:00]} Bf1 {[%emt 0:00:30]} 66. Ke3 {[%emt 0:00:00]} Qd5 {[%emt 0:00:34]} 67. Qd2 {[%emt 0:00:00]} Qb3+ {[%emt 0:01:01]} 68. Kf2 {[%emt 0:00:00]} Bb5 {[%emt 0:00:15]} 69. Qd6 {[%emt 0:00:00]} Qc2+ {[%emt 0:00:36]} 70. Ke3 {[%emt 0:00:00]} Qc3+ {[%emt 0:00:14]} 71. Kf2 {[%emt 0:00:00]} Bc6 {[%emt 0:00:40]} 72. Ke2 {[%emt 0:00:00]} Bf3+ {[%emt 0:00:22]} 73. Kf2 {[%emt 0:00:00]} Bg4 {[%emt 0:00:16]} 74. f5 {[%emt 0:00:00]} Qf3+ {[%emt 0:00:24]} 75. Kg1 {[%emt 0:00:00]} Qe3+ {[%emt 0:00:33]} 76. Kg2 {[%emt 0:00:00]} Bf3+ {[%emt 0:00:32]} 77. Kh3 {[%emt 0:00:00]} Qf2 {[%emt 0:00:34]} 0-1